bitfinex-derivatives/quotes_SOLF0:USTF0_20250909
["timestamp","ask_amount","ask_price","bid_price","bid_amount"]
[1757414743512,0.03235803,218.52,218.42,11.6402]
[1757414743712,2.99786519,218.5,218.38,6.99]
[1757414744012,7.41,218.49,218.4,4.1205]
[1757414744313,0.02909996,218.46,218.4,4.1205]
[1757414744514,7.43909996,218.46,218.4,4.1205]
[1757414745014,7.43909996,218.46,218.4,11.1105]
[1757414746706,7.43909996,218.46,218.34,67.11356519]
[1757414746707,7.41,218.45,218.37,6.99]
[1757414747411,7.41,218.45,218.39,4.1207]
[1757414747911,7.41,218.45,218.4,6.99]
[1757414748317,7.41,218.45,218.39,4.1207]
[1757414751818,7.41,218.45,218.38,6.99]
[1757414752610,7.41,218.45,218.38,11.1108]
[1757414757722,7.41,218.45,218.38,4.1208]
[1757414757920,7.41,218.45,218.39,6.99]
[1757414760423,7.41,218.45,218.32,6.99]
[1757414761020,0.03094568,218.41,218.32,6.99]
[1757414761222,7.41,218.4,218.32,6.99]
[1757414761922,7.41,218.4,218.34,4.1216]
[1757414762120,0.03094568,218.41,218.34,4.1216]
[1757414762328,7.44094568,218.41,218.35,6.99]
[1757414763422,7.44094568,218.41,218.34,4.1216]
[1757414763623,7.44094568,218.41,218.33,6.99]
[1757414765124,0.03094568,218.41,218.35,2.99786519]
[1757414765426,0.03094568,218.41,218.36,6.99]
[1757414765621,0.03094568,218.41,218.36,9.98786519]
[1757414765825,0.03094568,218.41,218.37,6.99]
[1757414766022,0.03094568,218.41,218.37,4.1211]
[1757414766221,0.03094568,218.41,218.38,6.99]
[1757414766422,7.44094568,218.41,218.34,2.99786519]
[1757414766619,0.03094568,218.41,218.35,6.99]
[1757414767127,0.03094568,218.41,218.34,2.99786519]
[1757414767128,0.03094568,218.41,218.36,4.1212]
[1757414767623,0.03094568,218.41,218.37,6.99]
[1757414767824,7.41,218.4,218.37,6.99]
[1757414768024,7.41,218.4,218.34,6.99]
[1757414768722,7.41,218.4,218.29,6.99]
[1757414769422,7.41,218.36,218.29,6.99]
[1757414770728,0.0326909,218.37,218.29,6.99]
[1757414770922,0.0326909,218.37,218.3,6.99]
[1757414771728,7.4426909,218.37,218.3,6.99]
[1757414776633,7.4426909,218.37,218.27,4.123]
[1757414776832,7.4426909,218.37,218.28,7.34]
[1757414777234,7.41,218.37,218.28,7.34]
[1757414777426,0.03036742,218.35,218.28,7.34]
[1757414777625,7.37,218.34,218.28,7.34]
[1757414779339,0.03036742,218.35,218.28,7.34]
[1757414783041,7.37,218.34,218.28,7.34]
[1757414799247,2.99786519,218.32,218.28,7.34]
[1757414799953,2.99786519,218.32,218.21,4.1241]
[1757414800557,0.03031031,218.29,218.21,4.1241]
[1757414804366,1.95297257,218.29,218.21,4.1241]
[1757414805560,1.95297257,218.29,218.2,1.92266226]
[1757414806864,0.03031031,218.29,218.2,6.04696226]
[1757414807064,1.95297257,218.29,218.2,6.04696226]
[1757414807861,1.95297257,218.29,218.14,372.79217923]
[1757414807862,0.03031031,218.29,218.24,1.92266226]
[1757414808371,1.92266226,218.33,218.24,1.92266226]
[1757414808562,0.03067359,218.29,218.24,1.92266226]
[1757414811970,0.03067359,218.29,218.25,7.66]
[1757414812870,0.03067359,218.29,218.27,7.66]
[1757414813472,7.58,218.38,218.29,7.66]
[1757414813673,7.58,218.38,218.32,7.66]
[1757414814675,0.03362341,218.37,218.32,7.66]
[1757414815165,0.03362341,218.37,218.3,7.66]
[1757414815364,0.03362341,218.37,218.32,7.66]
[1757414815564,0.03362341,218.37,218.31,1.92266226]
[1757414815768,0.03362341,218.37,218.32,7.66]
[1757414816769,0.03362341,218.37,218.33,1.92266226]
[1757414817067,308.0,218.39,218.33,1.92266226]
[1757414817273,308.0,218.39,218.34,7.66]
[1757414817576,0.03474548,218.37,218.34,7.66]
[1757414818772,0.03474548,218.37,218.33,1.92266226]
[1757414819072,0.03474548,218.37,218.34,7.66]
[1757414819472,0.03474548,218.37,218.33,1.92266226]
[1757414819775,0.03474548,218.37,218.34,7.66]
[1757414820077,0.03474548,218.37,218.33,1.92266226]
[1757414820279,0.03474548,218.37,218.34,7.66]
[1757414820576,0.03474548,218.37,218.33,1.92266226]
[1757414820777,0.03474548,218.37,218.34,7.66]
[1757414821179,0.03474548,218.37,218.35,1.92266226]
[1757414821380,0.03474548,218.37,218.36,7.66]
[1757414822084,0.03474548,218.37,218.36,11.29951149]
[1757414822980,0.03474548,218.37,218.36,7.66]
[1757414827481,0.03474548,218.37,218.3,9.58266226]
[1757414827685,0.03474548,218.37,218.31,7.66]
[1757414828877,0.03474548,218.37,218.32,1.92266226]
[1757414829078,0.03474548,218.37,218.33,7.66]
[1757414829580,0.03474548,218.37,218.32,1.92266226]
[1757414829780,0.03474548,218.37,218.32,7.66]
[1757414831389,0.03474548,218.37,218.3,7.66]
[1757414832788,0.03474548,218.37,218.31,1.92266226]
[1757414833090,1.92266226,218.38,218.31,1.92266226]
[1757414833290,9.53266226,218.38,218.32,7.66]
[1757414833589,0.03479601,218.36,218.32,7.29]
[1757414834186,0.03479601,218.36,218.31,1.92266226]
[1757414834689,0.03479601,218.36,218.32,7.29]
[1757414834981,0.03479601,218.36,218.31,1.92266226]
[1757414835185,0.03479601,218.36,218.32,7.29]
[1757414836191,0.03479601,218.36,218.25,7.29]
[1757414836386,0.03479601,218.36,218.31,1.92266226]
[1757414837182,0.03479601,218.36,218.32,7.29]
[1757414839591,0.03479601,218.36,218.31,6.04486226]
[1757414839795,0.03479601,218.36,218.32,7.29]
[1757414843095,0.03479601,218.36,218.31,6.04486226]
[1757414843398,0.03479601,218.36,218.32,7.29]
[1757414844200,0.03479601,218.36,218.31,6.04486226]
[1757414844201,0.03479601,218.36,218.31,1.92266226]
[1757414844499,0.03479601,218.36,218.3,7.29]
[1757414849000,0.03479601,218.36,218.31,1.92266226]
[1757414849593,0.03479601,218.36,218.3,7.29]
[1757414849798,0.03479601,218.36,218.29,4.1226]
[1757414849799,0.03479601,218.36,218.32,7.29]
[1757414850101,0.03479601,218.36,218.31,1.92266226]
[1757414850305,0.03479601,218.36,218.32,7.29]
[1757414850501,0.03479601,218.36,218.31,1.92266226]
[1757414850703,0.03479601,218.36,218.32,7.29]
[1757414854212,0.03479601,218.36,218.35,9.21266226]
[1757414854402,7.59,218.46,218.36,7.29]
[1757414854602,7.59,218.46,218.39,7.29]
[1757414855710,9.54266226,218.47,218.41,7.29]
[1757414858010,7.62,218.47,218.41,7.29]
[1757414858712,112.44,218.48,218.41,7.29]
[1757414858912,1.92266226,218.49,218.41,7.29]
[1757414859112,114.34266226,218.49,218.43,7.29]
[1757414862413,9.54266226,218.49,218.41,7.29]
[1757414862615,112.42,218.48,218.41,7.29]
[1757414862913,9.54266226,218.49,218.41,7.29]
[1757414863215,121.94266226,218.49,218.41,7.29]
[1757414866422,120.02,218.49,218.41,7.29]
[1757414879034,7.62,218.49,218.41,7.29]
[1757414879333,7.28,218.47,218.41,7.29]
[1757414880930,5.0,218.5,218.41,7.29]
[1757414881133,5.0,218.5,218.44,7.08]
[1757414881933,12.28,218.5,218.46,7.08]
[1757414882135,7.28,218.49,218.46,7.08]
[1757414882528,5.0,218.5,218.45,0.03137551]
[1757414882934,7.28,218.49,218.46,7.08]
[1757414884236,7.28,218.49,218.45,0.03137551]
[1757414884437,7.28,218.49,218.46,7.08]
[1757414885336,5.0,218.5,218.45,0.03137551]
[1757414885337,12.28,218.5,218.45,0.03137551]
[1757414885535,7.28,218.49,218.45,0.03137551]
[1757414896251,5.0,218.5,218.45,0.03137551]
[1757414896442,6.99,218.49,218.45,7.26137551]
[1757414896948,5.0,218.5,218.45,0.03137551]
[1757414897450,6.99,218.49,218.45,0.03137551]
[1757414898551,5.0,218.5,218.45,0.03137551]
[1757414898850,6.99,218.49,218.45,0.03137551]
[1757414901146,5.0,218.5,218.45,0.03137551]
[1757414901344,5.0,218.5,218.46,7.23]
[1757414901549,5.0,218.5,218.48,7.23]
[1757414901744,5.0,218.5,218.49,10.87437929]
[1757414903352,5.0,218.5,218.49,7.23]
[1757414913057,6.99,218.6,218.5,7.23]
[1757414913263,6.99,218.6,218.53,7.23]
[1757414913763,6.99,218.6,218.54,0.03068818]
[1757414915563,6.99,218.68,218.56,2.99884457]
[1757414916467,6.99,218.68,218.6,0.03013427]
[1757414926063,98.34,218.67,218.6,0.03013427]
[1757414926263,6.99,218.66,218.6,0.03013427]
[1757414929370,8.90630322,218.66,218.6,0.03013427]
[1757414929875,114.11630322,218.66,218.6,0.03013427]
[1757414930679,7.66514182,218.75,218.6,1.94643749]
[1757414930879,1.91630322,218.68,218.6,1.94643749]
[1757414931080,1.91630322,218.68,218.6,1.91630322]
[1757414932173,1.91630322,218.68,218.62,0.03007021]
[1757414935985,6.99,218.67,218.62,0.03007021]
[1757414936184,6.99,218.73,218.62,0.03007021]
[1757414936481,1.91630322,218.68,218.62,0.03007021]
[1757414936682,98.22,218.67,218.62,0.03007021]
[1757414937189,6.99,218.66,218.61,7.66]
[1757414937391,98.22,218.67,218.61,7.66]
[1757414937591,98.22,218.67,218.61,7.6897775]
[1757414938584,6.99,218.66,218.61,7.6897775]
[1757414938890,98.22,218.67,218.61,7.6897775]
[1757414939089,105.21,218.67,218.61,7.6897775]
[1757414941293,119.15,218.67,218.61,7.6897775]
[1757414941793,6.99,218.67,218.61,7.6897775]
[1757414941991,119.15,218.67,218.61,7.6897775]
[1757414945693,6.99,218.67,218.61,9.60608072]
[1757414945894,112.16,218.66,218.61,1.94608072]
[1757414946093,112.16,218.66,218.62,7.66]
[1757414946296,6.99,218.67,218.64,7.66]
[1757414946497,6.99,218.67,218.63,1.91630322]
[1757414946698,6.99,218.67,218.64,7.66]
[1757414948498,1.91630322,218.66,218.64,7.66]
[1757414949998,1.91630322,218.66,218.61,0.0297775]
[1757414950198,1.91630322,218.62,218.61,0.0297775]
[1757414950500,114.05630322,218.62,218.61,0.0297775]
[1757414951695,112.14,218.62,218.61,0.0297775]
[1757414956904,1.91630322,218.65,218.61,0.0297775]
[1757414957099,112.14,218.64,218.61,0.0297775]
[1757414957401,1.91630322,218.65,218.61,0.0297775]
[1757414957593,112.14,218.64,218.61,0.0297775]
[1757414957799,112.14,218.63,218.61,0.0297775]
[1757414957999,112.14,218.64,218.61,0.0297775]
[1757414958300,112.14,218.65,218.61,0.0297775]
[1757414960906,114.05630322,218.65,218.61,0.0297775]
[1757414965910,114.05630322,218.65,218.62,7.2]
[1757414966106,7.05,218.64,218.61,0.0297775]
[1757414966798,114.05630322,218.65,218.61,0.0297775]
[1757414967408,7.05,218.64,218.61,0.0297775]
[1757414967607,114.05630322,218.65,218.61,0.0297775]
[1757414968010,7.05,218.64,218.61,0.0297775]
[1757414968210,114.05630322,218.65,218.61,0.0297775]
[1757414968907,7.05,218.64,218.61,0.0297775]
[1757414969108,114.05630322,218.65,218.61,0.0297775]
[1757414969704,7.05,218.64,218.61,0.0297775]
[1757414970011,114.05630322,218.65,218.61,0.0297775]
[1757414970214,7.05,218.64,218.61,0.0297775]
[1757414970714,114.05630322,218.65,218.61,0.0297775]
[1757414970914,7.05,218.64,218.61,0.0297775]
[1757414971211,114.05630322,218.65,218.61,0.0297775]
[1757414971412,7.05,218.62,218.61,0.0297775]
[1757414979921,1.91630322,218.63,218.61,0.0297775]
[1757414985730,112.08,218.62,218.61,0.0297775]
[1757414986325,1.91630322,218.63,218.61,0.0297775]
[1757414986727,112.08,218.62,218.61,0.0297775]
[1757414987829,1.91630322,218.63,218.61,0.0297775]
[1757414988026,112.08,218.62,218.61,0.0297775]
[1757414996033,112.06,218.62,218.61,0.0297775]
[1757414996939,180.14683406,218.65,218.61,0.0297775]
[1757414997141,112.06,218.64,218.61,0.0297775]
[1757415003239,2.99528876,218.62,218.43,3.83147035]
[1757415003444,2.99528876,218.56,218.44,3.64291723]
[1757415003643,11.98,218.55,218.45,3.64291723]
[1757415003939,11.98,218.55,218.46,3.64291723]
[1757415004142,11.98,218.55,218.47,3.64291723]
[1757415004341,11.98,218.55,218.48,3.64291723]
[1757415004545,0.03077194,218.53,218.49,3.64291723]
[1757415004740,26.34,218.52,218.44,4.1197]
[1757415004939,26.34,218.52,218.45,3.64220594]
[1757415005141,26.34,218.52,218.46,3.64220594]
[1757415005335,26.34,218.52,218.47,3.64220594]
[1757415005539,26.34,218.52,218.48,3.64220594]
[1757415005745,26.34,218.52,218.49,3.64220594]
[1757415005945,26.34,218.52,218.44,4.1197]
[1757415006139,26.34,218.52,218.45,3.64150311]
[1757415006340,26.34,218.52,218.46,3.64150311]
[1757415006534,26.34,218.52,218.47,3.64150311]
[1757415006744,26.34,218.52,218.41,4.1202]
[1757415006944,26.34,218.52,218.42,3.64113785]
[1757415007137,26.34,218.52,218.43,3.64113785]
[1757415007342,26.34,218.52,218.37,2.99528876]
[1757415007542,26.34,218.52,218.38,3.63916391]
[1757415007746,26.34,218.52,218.39,3.63916391]
[1757415007941,26.34,218.52,218.4,3.63916391]
[1757415008146,26.34,218.52,218.41,3.63916391]
[1757415008444,0.03126627,218.48,218.42,3.63916391]
[1757415008642,0.03126627,218.48,218.38,4.1208]
[1757415008840,0.03126627,218.48,218.39,3.63708826]
[1757415009036,0.03126627,218.48,218.4,3.63708826]
[1757415009247,0.03126627,218.48,218.41,3.63708826]
[1757415009448,0.03126627,218.48,218.42,3.63708826]
[1757415009750,0.03126627,218.48,218.38,4.1208]
[1757415009951,0.03126627,218.48,218.39,3.63537911]
[1757415010246,0.03126627,218.48,218.4,3.63537911]
[1757415010447,0.03126627,218.48,218.41,3.63537911]
[1757415010648,0.03126627,218.48,218.42,3.63537911]
[1757415010848,0.03126627,218.48,218.38,4.1208]
[1757415011143,0.03126627,218.48,218.39,3.63402795]
[1757415011342,0.03126627,218.48,218.4,3.63402795]
[1757415011549,0.03126627,218.48,218.35,4.1213]
[1757415011742,0.03126627,218.48,218.36,3.63313778]
[1757415011944,0.03126627,218.48,218.37,3.63313778]
[1757415012255,0.03126627,218.48,218.38,3.63313778]
[1757415012546,0.03126627,218.48,218.35,4.1213]
[1757415012843,0.03126627,218.48,218.36,3.63141868]
[1757415013045,0.03126627,218.48,218.37,3.63141868]
[1757415013349,0.03126627,218.48,218.35,4.1213]
[1757415013551,0.03126627,218.48,218.36,3.62989843]
[1757415013751,0.03126627,218.48,218.37,3.62989843]
[1757415013945,0.03126627,218.48,218.35,4.1213]
[1757415014144,0.03126627,218.48,218.36,3.62989843]
[1757415014450,32.22,218.47,218.37,3.62989843]
[1757415014648,32.22,218.47,218.35,2.99528876]
[1757415014849,42.13126627,218.48,218.36,3.62869004]
[1757415015046,42.1,218.48,218.38,4.1208]
[1757415016244,0.03161712,218.45,218.38,4.1208]
[1757415016852,0.03161712,218.45,218.39,4.1206]
[1757415018842,0.03161712,218.45,218.38,2.99528876]
[1757415019650,0.03161712,218.45,218.38,7.11608876]
[1757415022554,0.03161712,218.45,218.38,4.1208]
[1757415023954,5.75161712,218.49,218.39,7.61]
[1757415024254,9.19,218.5,218.39,7.64008964]
[1757415024650,9.19,218.5,218.39,7.61]
[1757415025155,7.11,218.49,218.39,7.61]
[1757415025448,7.11,218.49,218.42,0.0312399]
[1757415029763,7.11,218.49,218.36,4.1213]
[1757415029764,7.11,218.46,218.32,0.03]
[1757415030063,7.11,218.43,218.32,0.03]
[1757415031072,7.11,218.39,218.32,0.03]
[1757415032865,7.11,218.39,218.32,4.152]
[1757415033067,7.11,218.39,218.33,0.03]
[1757415037172,7.11,218.39,218.3,0.05]
[1757415037770,7.11,218.39,218.27,4.173]
[1757415039078,7.11,218.34,218.27,4.173]
[1757415041076,7.11,218.34,218.28,3.62056046]
[1757415041270,7.11,218.34,218.27,4.173]
[1757415041474,7.11,218.34,218.28,3.62056046]
[1757415041671,7.11,218.34,218.28,4.1227]
[1757415041872,7.14082556,218.35,218.29,0.05]
[1757415043566,7.14082556,218.35,218.29,4.1725]
[1757415044072,7.44,218.34,218.31,4.1621]
[1757415045075,7.47082556,218.35,218.33,0.04]
[1757415045572,0.03082556,218.35,218.32,4.122]
[1757415045774,0.03082556,218.35,218.34,0.04]
[1757415046275,0.03082556,218.35,218.32,4.122]
[1757415046572,7.47082556,218.35,218.33,3.62412235]
[1757415046777,7.47082556,218.35,218.33,0.04]
[1757415047278,0.03082556,218.35,218.31,0.04]
[1757415047477,7.44,218.34,218.32,3.66587318]
[1757415047676,7.44,218.34,218.33,3.62587318]
[1757415049972,7.44,218.34,218.29,0.04]
[1757415050175,7.44,218.34,218.3,3.62939161]
[1757415050371,7.44,218.34,218.31,3.62939161]
[1757415050575,7.44,218.34,218.29,0.04]
[1757415050774,7.44,218.34,218.3,3.6302753]
[1757415051077,7.44,218.34,218.28,1.92119874]
[1757415051275,7.44,218.34,218.29,3.6312163]
[1757415051472,7.44,218.34,218.3,3.6312163]
[1757415051676,7.44,218.34,218.26,1.96119874]
[1757415051976,7.44,218.34,218.27,3.63134756]
[1757415052177,7.44,218.34,218.28,3.63134756]
[1757415052378,7.44,218.34,218.29,3.63134756]
[1757415052577,7.44,218.34,218.26,0.04]
[1757415052774,7.44,218.34,218.27,3.63117189]
[1757415052973,7.44,218.34,218.26,1.96119874]
[1757415052974,7.44,218.34,218.28,3.63117189]
[1757415053174,7.44,218.34,218.29,3.63117189]
[1757415053379,7.44,218.34,218.26,1.96119874]
[1757415053578,7.44,218.34,218.27,3.63099504]
[1757415053778,7.44,218.34,218.28,3.63099504]
[1757415053981,7.44,218.34,218.29,3.63099504]
[1757415054172,7.44,218.34,218.26,1.96119874]
[1757415054372,7.44,218.34,218.27,3.63092983]
[1757415054574,7.44,218.34,218.28,3.63092983]
[1757415054880,1.9520243,218.35,218.29,3.63092983]
[1757415055181,7.44,218.34,218.26,1.96119874]
[1757415055375,7.44,218.34,218.28,1.96119874]
[1757415055579,0.03082556,218.35,218.29,3.6309569]
[1757415055878,7.44,218.36,218.31,0.04]
[1757415056080,7.44,218.33,218.31,0.04]
[1757415056880,0.03260198,218.34,218.31,0.04]
[1757415057577,7.47260198,218.34,218.31,0.04]
[1757415057778,7.44,218.33,218.31,0.04]
[1757415058082,7.44,218.33,218.3,1.96119874]
[1757415058680,7.44,218.33,218.3,0.04]
[1757415058880,7.44,218.33,218.3,1.96119874]
[1757415059082,7.44,218.33,218.31,3.63129801]
[1757415059378,7.44,218.33,218.3,1.96119874]
[1757415059579,7.44,218.33,218.31,3.63129801]
[1757415059776,7.44,218.33,218.3,1.96119874]
[1757415059979,7.44,218.33,218.31,3.63129801]
[1757415060179,7.44,218.33,218.3,1.96119874]
[1757415061282,0.03260198,218.34,218.3,1.96119874]
[1757415061478,7.44,218.33,218.3,1.96119874]
[1757415062178,0.03260198,218.34,218.31,0.04]
[1757415062478,0.03260198,218.34,218.3,1.92119874]
[1757415062880,7.44,218.33,218.3,1.92119874]
[1757415063079,0.03260198,218.34,218.3,1.92119874]
[1757415063473,7.44,218.33,218.3,1.92119874]
[1757415063674,7.44,218.33,218.29,1.92119874]
[1757415063871,0.03260198,218.34,218.3,3.63249055]
[1757415064077,7.44,218.33,218.29,1.92119874]
[1757415064273,7.44,218.33,218.3,3.63280401]
[1757415064483,7.44,218.33,218.29,1.92119874]
[1757415064673,0.03260198,218.34,218.3,3.63280401]
[1757415064871,7.44,218.33,218.29,1.96119874]
[1757415065080,7.44,218.33,218.3,3.67277937]
[1757415065383,7.44,218.33,218.29,1.92119874]
[1757415065578,7.44,218.33,218.31,0.04]
[1757415065881,7.47260198,218.34,218.31,1.96119874]
[1757415066174,7.44,218.33,218.31,1.92119874]
[1757415066772,0.03260198,218.34,218.29,1.96119874]
[1757415066978,7.44,218.33,218.3,3.63356267]
[1757415067181,7.44,218.33,218.31,3.63356267]
[1757415067481,0.03260198,218.34,218.19,1.92119874]
[1757415067482,7.44,218.31,218.19,1.92119874]
[1757415067684,7.44,218.29,218.19,1.92119874]
[1757415067883,7.44,218.29,218.23,1.92119874]
[1757415068080,0.03331404,218.26,218.23,1.92119874]
[1757415068280,0.03331404,218.26,218.24,3.67]
[1757415068779,7.47331404,218.26,218.23,1.92119874]
[1757415068981,0.03331404,218.26,218.23,1.92119874]
[1757415069180,0.03331404,218.26,218.24,3.67]
[1757415069778,7.47331404,218.26,218.23,1.92119874]
[1757415069983,7.47331404,218.26,218.22,3.67]
[1757415070182,0.03331404,218.26,218.22,3.67]
[1757415070580,7.47331404,218.26,218.22,3.67]
[1757415070784,7.47331404,218.26,218.21,1.92119874]
[1757415071188,7.47331404,218.26,218.23,3.67]
[1757415076796,0.03331404,218.26,218.18,4.1247]
[1757415076999,7.69331404,218.26,218.2,1.92119874]
[1757415077699,7.66,218.24,218.16,5.60119874]
[1757415078792,1.92119874,218.23,218.16,3.68]
[1757415079098,1.92119874,218.23,218.13,0.79762546]
[1757415079099,9.58119874,218.22,218.14,1.92119874]
[1757415079690,0.03305339,218.2,218.14,1.92119874]
[1757415083194,0.03305339,218.2,218.15,3.68]
[1757415083397,0.03305339,218.2,218.14,1.92119874]
[1757415084197,0.03305339,218.2,218.15,3.68]
[1757415084696,0.03305339,218.2,218.14,1.92119874]
[1757415085603,7.69305339,218.2,218.14,5.60119874]
[1757415086400,7.69305339,218.2,218.14,3.68]
[1757415087594,9.61425213,218.2,218.11,1.92119874]
[1757415088198,1.92119874,218.18,218.1,3.68]
[1757415088399,7.66,218.17,218.1,3.68]
[1757415089515,7.66,218.15,218.07,1.92119874]
[1757415090203,0.03015419,218.13,218.03,0.79801871]
[1757415090502,0.03015419,218.13,218.12,3.68]
[1757415092095,0.03015419,218.13,218.11,1.92119874]
[1757415092301,7.69015419,218.13,218.09,5.60119874]
[1757415092702,7.66,218.12,218.09,3.68]
[1757415094404,7.69015419,218.13,218.09,3.68]
[1757415094602,7.69015419,218.13,218.08,1.92119874]
[1757415094801,0.03015419,218.13,218.1,1.92119874]
[1757415095105,0.03015419,218.13,218.12,1.92119874]
[1757415095306,0.03015419,218.13,218.12,5.60119874]
[1757415095605,0.03015419,218.13,218.1,1.92119874]
[1757415095805,0.03015419,218.13,218.11,3.68]
[1757415096006,0.03015419,218.13,218.1,1.92119874]
[1757415096304,0.03015419,218.13,218.11,3.68]
[1757415096907,7.69015419,218.13,218.09,1.92119874]
[1757415097104,0.03015419,218.13,218.09,5.60119874]
[1757415097305,7.66,218.12,218.09,5.60119874]
[1757415097504,0.03015419,218.13,218.09,1.92119874]
[1757415097705,7.69015419,218.13,218.1,3.68]
[1757415098402,7.66,218.12,218.09,1.92119874]
[1757415098604,7.66,218.12,218.09,5.60119874]
[1757415098809,7.66,218.12,218.09,3.68]
[1757415099009,7.66,218.12,218.09,5.60119874]
[1757415099810,0.03015419,218.13,218.11,5.60119874]
[1757415100305,7.69015419,218.13,218.11,1.92119874]
[1757415100804,7.66,218.12,218.09,1.92119874]
[1757415101212,0.03015419,218.13,218.09,1.92119874]
[1757415101410,7.66,218.12,218.09,1.92119874]
[1757415101904,0.03015419,218.13,218.07,3.68]
[1757415102105,0.03015419,218.13,218.07,1.92119874]
[1757415102106,7.66,218.12,218.07,1.92119874]
[1757415102310,7.66,218.12,218.05,1.92119874]
[1757415104812,7.66,218.12,218.04,3.68]
[1757415105014,1.92119874,218.11,218.03,1.92119874]
[1757415105209,7.44,218.1,218.03,1.92119874]
[1757415106615,7.44,218.1,218.03,6.04859874]
[1757415107419,7.44,218.1,218.04,1.92119874]
[1757415109814,7.44,218.12,217.97,4.48822922]
[1757415110014,7.44,218.06,217.98,1.92119874]
[1757415110425,0.03510748,218.04,217.97,3.69]
[1757415110719,0.03510748,218.04,217.99,3.69]
[1757415110920,0.03510748,218.04,217.98,3.01003074]
[1757415111415,0.03510748,218.04,217.99,3.69]
[1757415111917,0.03510748,218.04,217.98,3.01003074]
[1757415111918,0.03510748,218.04,218.01,3.69]
[1757415112119,0.03510748,218.04,218.0,4.128]
[1757415112513,0.03510748,218.04,218.01,3.69]
[1757415114120,0.03510748,218.04,218.0,4.128]
[1757415114321,0.03510748,218.04,218.01,3.69]
[1757415114524,0.03510748,218.04,218.0,4.128]
[1757415114819,0.03510748,218.04,217.99,3.69]
[1757415115017,0.03510748,218.04,217.98,7.13853074]
[1757415115322,0.03510748,218.04,217.99,3.69]
[1757415117222,0.03510748,218.04,218.01,4.1278]
[1757415117421,0.03510748,218.04,218.02,3.69]
[1757415117625,0.03510748,218.04,218.03,3.69]
[1757415118334,0.03510748,218.04,217.99,7.13833074]
[1757415118826,0.03510748,218.04,218.0,3.69]
[1757415119017,0.03510748,218.04,217.99,7.13833074]
[1757415119217,0.03510748,218.04,218.0,3.69]
[1757415119427,0.03510748,218.04,217.99,7.13833074]
[1757415119926,0.03510748,218.04,218.0,7.818]
[1757415120128,0.03510748,218.04,218.0,4.128]
[1757415120326,0.03510748,218.04,218.01,3.69]
[1757415120729,0.03510748,218.04,217.98,6.70003074]
[1757415121324,0.03510748,218.04,217.98,3.69]
[1757415121726,7.44,218.03,217.93,3.69]
[1757415121929,7.44,218.01,217.88,3.69]
[1757415122523,0.03202067,217.97,217.88,3.69]
[1757415122725,7.44,217.96,217.88,3.69]
[1757415123328,3.01003074,217.94,217.83,0.79873304]
[1757415123530,7.44,217.93,217.8,7.8217]
[1757415123735,14.7,217.93,217.8,7.8217]
[1757415124037,0.03359901,217.89,217.82,3.69]
[1757415124331,7.44,217.94,217.82,6.70003074]
[1757415124528,7.44,217.94,217.84,4.1311]
[1757415124726,0.03221089,217.88,217.84,4.1311]
[1757415125127,0.03221089,217.88,217.85,3.69]
[1757415125631,0.03221089,217.88,217.84,4.1311]
[1757415126134,0.03221089,217.88,217.85,3.69]
[1757415126337,0.03221089,217.88,217.84,4.1311]
[1757415126635,0.03221089,217.88,217.85,3.69]
[1757415127136,0.03221089,217.88,217.84,4.1311]
[1757415127638,0.03221089,217.88,217.85,4.1308]
[1757415128230,0.03221089,217.88,217.86,3.69]
[1757415128736,0.03221089,217.88,217.83,4.1313]
[1757415129330,0.03221089,217.88,217.84,3.69]
[1757415129528,0.03221089,217.88,217.83,4.1313]
[1757415129732,0.03221089,217.88,217.85,3.69]
[1757415130332,0.03221089,217.88,217.84,7.14103074]